bitfinex/quotes_SOLUSD_20251214
["timestamp","ask_amount","ask_price","bid_price","bid_amount"]
[1765712823645,13.7570912,131.0,130.91,8.80994492]
[1765712823995,0.71,131.0,130.93,8.80994492]
[1765712824192,0.71,131.0,130.94,0.14216157]
[1765712824354,13.0470912,131.02,130.94,9.59210649]
[1765712824675,0.71,131.01,130.94,17.21210649]
[1765712825641,0.71,131.01,130.95,0.14216157]
[1765712827360,0.71,131.01,130.94,8.26]
[1765712827361,13.0470912,131.02,130.94,8.26]
[1765712827547,0.71,131.07,130.97,8.80994492]
[1765712827746,0.71,131.07,130.98,0.28432314]
[1765712827959,0.71,131.07,130.98,0.92432314]
[1765712828161,0.71,131.07,131.0,0.28432314]
[1765712828450,0.99999999,131.16,131.0,0.28432314]
[1765712828451,9.31999999,131.19,131.02,0.28432314]
[1765712828761,13.0470912,131.11,131.02,0.28432314]
[1765712829156,0.71,131.1,131.02,0.28432314]
[1765712830175,13.0470912,131.06,131.01,0.28432314]
[1765712830506,13.0470912,131.06,131.0,8.26]
[1765712830671,0.71,131.05,131.0,8.26]
[1765712830859,0.71,131.08,131.02,0.28432314]
[1765712831060,0.71,131.11,131.02,0.28432314]
[1765712831370,0.71,131.11,131.05,0.28432314]
[1765712832397,0.71,131.14,131.08,0.28432314]
[1765712833162,0.71,131.14,131.05,0.92432314]
[1765712833366,0.71,131.14,131.05,0.28432314]
[1765712833682,13.0470912,131.1,130.98,0.64]
[1765712833858,0.71,131.09,131.0,8.80994492]
[1765712834279,0.71,131.09,131.01,0.14216157]
[1765712834498,0.71,131.11,131.01,0.78216157]
[1765712834705,13.0470912,131.12,131.01,0.92432314]
[1765712835002,0.71,131.11,131.02,13.0470912]
[1765712835161,81.17965208,131.23,131.07,9.09426806]
[1765712835162,0.2,131.22,131.07,9.09426806]
[1765712835364,0.71,131.18,131.1,0.14216157]
[1765712835673,0.71,131.18,131.11,8.80994492]
[1765712836004,0.71,131.18,131.12,0.28432314]
[1765712836179,0.71,131.18,131.09,8.80994492]
[1765712836510,0.71,131.18,131.1,0.28432314]
[1765712837015,0.71,131.18,131.06,13.0470912]
[1765712837016,13.0470912,131.15,131.06,8.80994492]
[1765712837205,13.0470912,131.15,131.05,8.26]
[1765712837206,13.0470912,131.11,131.05,8.26]
[1765712837605,13.7570912,131.11,131.05,8.26]
[1765712837938,0.71,131.1,131.05,8.26]
[1765712839130,0.71,131.13,131.06,9.73426806]
[1765712839416,13.7570912,131.13,131.06,0.14216157]
[1765712839619,13.7570912,131.13,131.06,8.95210649]
[1765712839910,0.71,131.13,131.07,0.14216157]
[1765712840111,0.71,131.12,131.06,0.14216157]
[1765712840320,0.71,131.12,131.06,0.28432314]
[1765712841103,0.71,131.12,131.06,9.09426806]
[1765712841988,13.0470912,131.14,131.06,9.09426806]
[1765712842213,0.71,131.15,131.09,0.28432314]
[1765712842389,0.71,131.15,131.07,0.64]
[1765712842735,0.71,131.15,131.05,8.26]
[1765712843015,0.71,131.17,131.07,0.28432314]
[1765712843225,5.00140741,131.21,131.07,0.28432314]
[1765712843387,0.71,131.16,131.09,0.28432314]
[1765712843588,0.71,131.21,131.11,0.28432314]
[1765712843802,0.71,131.21,131.13,22.14135926]
[1765712843995,13.7570912,131.21,131.13,9.09426806]
[1765712844212,0.2,131.22,131.13,0.28432314]
[1765712844213,0.71,131.2,131.13,0.28432314]
[1765712844597,0.71,131.2,131.1,0.14216157]
[1765712844817,13.0470912,131.19,131.1,0.14216157]
[1765712845220,0.71,131.18,131.1,0.14216157]
[1765712845417,0.71,131.18,131.04,8.26]
[1765712845418,13.0470912,131.17,131.07,8.80994492]
[1765712845619,13.0470912,131.17,131.08,0.14216157]
[1765712845818,0.14216157,131.21,131.08,0.14216157]
[1765712845819,37.60965208,131.22,131.09,8.80994492]
[1765712845997,0.66,131.2,131.1,0.28432314]
[1765712846317,0.66,131.2,131.1,0.92432314]
[1765712846506,0.66,131.2,131.12,0.28432314]
[1765712846819,13.0470912,131.18,131.12,0.28432314]
[1765712847321,0.66,131.17,131.12,0.28432314]
[1765712848219,0.66,131.19,131.12,0.92432314]
[1765712848604,0.66,131.19,131.12,0.64]
[1765712848801,0.86,131.22,131.13,0.64]
[1765712849001,13.0470912,131.2,131.13,0.64]
[1765712849212,0.66,131.21,131.13,0.64]
[1765712849389,0.66,131.2,131.13,0.64]
[1765712849592,13.7070912,131.2,131.13,0.64]
[1765712850007,0.66,131.19,131.12,0.28432314]
[1765712850404,0.66,131.19,131.13,8.80994492]
[1765712850721,0.66,131.19,131.12,0.64]
[1765712851103,0.66,131.19,131.1,8.80994492]
[1765712851317,13.0470912,131.18,131.11,0.14216157]
[1765712851525,13.0470912,131.18,131.09,8.9]
[1765712851745,0.66,131.17,131.1,8.80994492]
[1765712852024,13.7070912,131.2,131.11,0.28432314]
[1765712852243,13.7070912,131.2,131.12,8.80994492]
[1765712852411,13.7070912,131.2,131.13,0.28432314]
[1765712853231,0.86,131.22,131.15,0.28432314]
[1765712853431,0.2,131.22,131.17,0.28432314]
[1765712853612,0.66,131.21,131.17,0.28432314]
[1765712853811,0.66,131.21,131.15,0.28432314]
[1765712854415,0.2,131.22,131.17,0.28432314]
[1765712854613,0.2,131.22,131.17,0.92432314]
[1765712854930,0.86,131.22,131.17,0.28432314]
[1765712855732,0.66,131.21,131.09,8.26]
[1765712855909,13.0470912,131.17,131.1,0.64]
[1765712856109,0.66,131.16,131.09,8.26]
[1765712856333,13.7070912,131.16,131.09,8.26]
[1765712856835,13.7070912,131.16,131.1,0.28432314]
[1765712857136,13.7070912,131.16,131.09,8.26]
[1765712857629,0.66,131.16,131.11,0.14216157]
[1765712857834,0.66,131.16,131.11,0.28432314]
[1765712858333,0.34216157,131.22,131.12,8.80994492]
[1765712858334,0.66,131.18,131.12,8.80994492]
[1765712858902,13.0470912,131.2,131.15,0.28432314]
[1765712859131,0.86,131.22,131.15,0.28432314]
[1765712859441,0.86,131.22,131.15,0.92432314]
[1765712859802,13.0470912,131.21,131.15,0.92432314]
[1765712860129,0.66,131.21,131.15,0.28432314]
[1765712860527,13.7070912,131.21,131.15,0.28432314]
[1765712860914,0.66,131.2,131.15,0.28432314]
[1765712861114,13.0470912,131.21,131.15,0.28432314]
[1765712861319,13.0470912,131.21,131.15,0.92432314]
[1765712861518,0.2,131.22,131.17,0.28432314]
[1765712861934,0.2,131.22,131.18,0.64]
[1765712862317,0.2,131.22,131.17,32.44130205]
[1765712862508,0.2,131.22,131.17,0.28432314]
[1765712862714,0.2,131.22,131.18,0.64]
[1765712862938,13.0470912,131.21,131.17,0.28432314]
[1765712863241,0.2,131.22,131.18,0.64]
[1765712864737,0.2,131.22,131.2,0.28432314]
[1765712865747,0.2,131.22,131.2,0.92432314]
[1765712865908,0.2,131.22,131.2,0.28432314]
[1765712866623,0.86,131.22,131.15,8.9]
[1765712866825,0.86,131.22,131.15,8.26]
[1765712867145,13.0470912,131.2,131.15,8.26]
[1765712867514,0.66,131.19,131.15,8.26]
[1765712867718,0.66,131.19,131.1,8.80994492]
[1765712868128,0.66,131.19,131.1,9.44994492]
[1765712868642,0.66,131.19,131.1,31.40933965]
[1765712868944,0.66,131.19,131.13,0.28432314]
[1765712869113,0.66,131.19,131.13,0.14216157]
[1765712869939,0.66,131.19,131.11,0.14216157]
[1765712870135,0.66,131.19,131.11,0.92432314]
[1765712870341,0.66,131.19,131.11,9.73426806]
[1765712870747,0.66,131.19,131.11,0.92432314]
[1765712871125,0.66,131.19,131.11,0.28432314]
[1765712871532,0.66,131.19,131.1,8.26]
[1765712871942,0.66,131.19,131.11,0.28432314]
[1765712872127,13.0470912,131.15,131.1,8.26]
[1765712872331,13.0470912,131.15,131.11,0.14216157]
[1765712872517,13.7070912,131.15,131.11,0.14216157]
[1765712872722,0.66,131.15,131.11,0.28432314]
[1765712873822,13.7070912,131.17,131.11,0.28432314]
[1765712874151,0.66,131.17,131.11,9.73426806]
[1765712874332,0.66,131.16,131.11,0.28432314]
[1765712874943,0.66,131.16,131.11,0.92432314]
[1765712875451,0.66,131.18,131.11,0.92432314]
[1765712875942,0.66,131.18,131.11,0.28432314]
[1765712876629,13.0470912,131.15,131.11,0.28432314]
[1765712876832,13.0470912,131.17,131.11,0.28432314]
[1765712877123,13.7070912,131.17,131.11,0.28432314]
[1765712877329,0.66,131.16,131.11,0.28432314]
[1765712877845,0.66,131.16,131.1,8.26]
[1765712877846,23.57,131.16,131.07,0.64]
[1765712878050,0.66,131.16,131.07,9.73426806]
[1765712878548,0.66,131.16,131.08,0.64]
[1765712879326,13.0470912,131.17,131.08,0.64]
[1765712879532,0.2,131.22,131.08,0.64]
[1765712879533,0.66,131.18,131.08,0.64]
[1765712880558,13.0470912,131.17,131.08,0.64]
[1765712880955,0.66,131.21,131.08,0.64]
[1765712881257,0.66,131.21,131.11,9.09426806]
[1765712881436,0.66,131.21,131.13,0.28432314]
[1765712881631,0.2,131.22,131.13,9.09426806]
[1765712881852,0.2,131.22,131.16,0.28432314]
[1765712882056,0.2,131.22,131.18,9.09426806]
[1765712882226,0.86,131.22,131.18,0.28432314]
[1765712882558,0.2,131.22,131.18,0.28432314]
[1765712882751,0.2,131.22,131.18,9.73426806]
[1765712883125,0.2,131.22,131.21,0.28432314]
[1765712883555,0.2,131.28,131.21,0.92432314]
[1765712883861,0.66,131.27,131.23,0.28432314]
[1765712884225,0.2,131.28,131.23,0.28432314]
[1765712884432,0.2,131.28,131.23,9.73426806]
[1765712884733,0.86,131.28,131.23,0.28432314]
[1765712885272,0.66,131.27,131.23,0.28432314]
[1765712885555,0.2,131.28,131.25,0.28432314]
[1765712885940,0.2,131.28,131.25,0.92432314]
[1765712886145,0.2,131.28,131.24,0.28432314]
[1765712886639,0.86,131.28,131.24,0.28432314]
[1765712887040,0.66,131.27,131.21,17.06994492]
[1765712887258,0.2,131.28,131.23,0.28432314]
[1765712887631,0.2,131.28,131.23,0.92432314]
[1765712888040,0.86,131.28,131.23,0.92432314]
[1765712888261,0.86,131.28,131.23,0.28432314]
[1765712888446,0.66,131.27,131.21,17.06994492]
[1765712888643,0.66,131.27,131.22,0.28432314]
[1765712889029,0.66,131.27,131.22,0.14216157]
[1765712889237,0.2,131.28,131.23,8.95210649]
[1765712889436,0.86,131.28,131.24,0.14216157]
[1765712889849,0.66,131.27,131.23,0.14216157]
[1765712890047,0.2,131.28,131.23,0.14216157]
[1765712890245,0.66,131.27,131.23,0.28432314]
[1765712890857,0.2,131.28,131.25,0.28432314]
[1765712891158,72.49013372,131.33,131.25,0.28432314]
[1765712892063,72.49013372,131.33,131.25,9.09426806]
[1765712892242,59.44304252,131.33,131.26,8.24]
[1765712893051,0.66,131.32,131.26,8.24]
[1765712893457,9.46994492,131.32,131.26,8.24]
[1765712893769,0.66,131.32,131.27,0.28432314]
[1765712893973,0.66,131.31,131.27,0.28432314]
[1765712894565,0.66,131.31,131.26,8.24]
[1765712898458,0.66,131.31,131.27,0.28432314]
[1765712900674,0.66,131.31,131.26,8.24]
[1765712900973,0.66,131.31,131.21,0.72]
[1765712900974,0.66,131.31,131.21,8.24]
[1765712901178,0.66,131.31,131.25,0.28432314]
[1765712901671,0.66,131.31,131.24,13.0470912]
[1765712902173,8.80994492,131.3,131.24,13.0470912]
[1765712902475,31.71994492,131.3,131.19,0.72]
[1765712902644,31.71994492,131.28,131.21,13.0470912]
[1765712902850,8.80994492,131.28,131.18,8.24]
[1765712903151,0.66,131.27,131.19,13.0470912]
[1765712903864,13.7070912,131.27,131.19,13.0470912]
[1765712904089,8.80994492,131.26,131.19,13.0470912]
[1765712904248,0.66,131.25,131.19,13.0470912]
[1765712904582,8.80994492,131.24,131.18,8.24]
[1765712904945,8.80994492,131.24,131.15,0.72]
[1765712904946,0.66,131.23,131.15,0.72]
[1765712905150,8.80994492,131.22,131.14,8.24]
[1765712905577,0.68,131.21,131.17,13.0470912]
[1765712906878,0.68,131.21,131.15,0.14216157]
[1765712907172,0.68,131.21,131.15,13.18925277]
[1765712907563,0.68,131.21,131.14,8.24]
[1765712907753,0.68,131.21,131.15,13.0470912]
[1765712908273,0.68,131.21,131.14,8.24]
[1765712909072,0.68,131.21,131.15,0.28432314]
[1765712909474,0.68,131.21,131.14,8.24]
[1765712909975,8.80994492,131.2,131.14,8.24]
[1765712910283,8.80994492,131.2,131.13,13.0470912]
[1765712910460,0.7,131.19,131.13,13.0470912]
[1765712912677,0.7,131.19,131.14,0.28432314]
[1765712913263,0.7,131.19,131.13,13.0470912]
[1765712914483,0.7,131.19,131.14,0.28432314]
[1765712914981,0.7,131.19,131.13,13.0470912]
[1765712915787,0.7,131.22,131.14,1.00432314]
[1765712915966,0.7,131.21,131.16,0.28432314]
[1765712916873,0.7,131.21,131.15,8.26]
[1765712917383,8.80994492,131.2,131.14,13.0470912]
[1765712917592,8.80994492,131.2,131.12,0.14216157]
[1765712917814,8.80994492,131.18,131.11,8.26]
[1765712917989,8.80994492,131.18,131.06,0.72]
[1765712918173,8.80994492,131.15,131.06,0.72]
[1765712918371,8.80994492,131.15,131.07,13.0470912]
[1765712918577,0.7,131.14,131.06,0.72]
[1765712918980,0.7,131.14,131.07,13.0470912]
[1765712920893,0.7,131.14,131.05,0.1]
[1765712920894,8.80994492,131.13,131.05,0.1]
[1765712921091,8.80994492,131.13,131.07,13.0470912]
[1765712921295,0.7,131.12,131.07,13.0470912]
[1765712924576,59.44304252,131.11,131.07,13.0470912]
[1765712925103,60.14304252,131.11,131.07,13.0470912]
[1765712925671,60.14304252,131.11,131.07,13.7670912]
[1765712925982,0.7,131.1,131.07,13.0470912]
[1765712927106,0.7,131.1,131.05,0.38432314]
[1765712927279,0.7,131.1,131.06,0.72]
[1765712927478,0.7,131.1,131.05,13.28925277]
[1765712927679,0.7,131.1,131.05,14.00925277]
[1765712928204,0.7,131.1,131.05,13.28925277]
[1765712928403,0.7,131.12,131.06,1.00432314]
[1765712928903,0.7,131.13,131.07,13.7670912]
[1765712929788,0.7,131.16,131.08,1.00432314]
[1765712930193,0.7,131.16,131.09,0.72]
[1765712931610,0.7,131.16,131.1,0.28432314]
[1765712932378,59.44304252,131.19,131.1,1.00432314]
[1765712932705,59.44304252,131.19,131.14,13.0470912]
[1765712932706,0.7,131.18,131.14,13.0470912]
[1765712932880,23.57,131.18,131.1,0.72]
[1765712933085,31.67994492,131.17,131.12,13.0470912]
[1765712933304,32.37994492,131.17,131.12,13.0470912]
[1765712933620,0.7,131.16,131.1,14.05141434]
[1765712934207,0.7,131.16,131.09,8.26]
[1765712934208,31.67994492,131.15,131.09,8.26]
[1765712934511,31.67994492,131.15,131.09,21.3070912]
[1765712934813,0.7,131.14,131.09,21.3070912]
[1765712935005,0.7,131.14,131.09,8.26]
[1765712936288,0.7,131.14,131.09,8.93]
[1765712936484,13.7570912,131.17,131.1,0.95432314]
[1765712936785,0.71,131.16,131.1,0.28432314]
[1765712937003,0.71,131.16,131.09,8.26]
[1765712937314,31.67994492,131.15,131.09,8.26]
[1765712937688,0.71,131.14,131.09,8.26]
[1765712937887,13.0470912,131.17,131.1,0.28432314]
[1765712937888,44.72703612,131.17,131.1,0.28432314]
[1765712938094,0.71,131.16,131.1,0.95432314]
[1765712939187,0.71,131.16,131.11,0.67]
[1765712939398,59.44304252,131.15,131.11,0.67]
[1765712939613,59.44304252,131.15,131.06,0.67]
[1765712939614,31.67994492,131.14,131.06,0.67]
[1765712939825,32.38994492,131.14,131.06,0.67]
[1765712939994,0.71,131.13,131.06,0.95432314]
[1765712940394,0.71,131.13,131.06,0.81216157]
[1765712941003,59.44304252,131.19,131.08,8.95210649]
[1765712941214,0.71,131.18,131.11,13.0470912]
[1765712941629,8.80994492,131.17,131.11,13.0470912]
[1765712941810,8.80994492,131.17,131.09,13.85925277]
[1765712942015,0.71,131.18,131.08,8.26]
[1765712942016,31.67994492,131.15,131.08,8.26]
[1765712942318,59.44304252,131.14,131.08,8.26]
[1765712942521,60.15304252,131.14,131.09,0.67]
[1765712943213,0.71,131.13,131.09,0.67]
[1765712943414,60.15304252,131.14,131.09,0.67]
[1765712943824,60.15304252,131.14,131.09,0.95432314]
[1765712944403,59.44304252,131.14,131.1,0.67]
[1765712945530,0.71,131.13,131.08,8.26]
[1765712945701,0.71,131.13,131.09,0.67]
[1765712946030,59.44304252,131.14,131.11,13.0470912]
[1765712946205,8.3,131.19,131.12,0.95432314]
[1765712946206,67.74304252,131.19,131.12,0.95432314]
[1765712946408,68.45304252,131.19,131.12,0.95432314]
[1765712946622,8.3,131.19,131.13,0.67]
[1765712947136,0.71,131.19,131.13,0.67]
[1765712947732,5.76272572,131.21,131.13,0.67]
[1765712947928,5.05272572,131.2,131.13,0.67]
[1765712948230,0.71,131.2,131.13,0.67]
[1765712950837,13.7570912,131.23,131.16,0.28432314]
[1765712951041,0.71,131.22,131.16,0.28432314]
[1765712951358,0.71,131.22,131.16,0.95432314]
[1765712951860,59.44304252,131.21,131.16,0.67]
[1765712952152,8.80994492,131.2,131.11,0.67]
[1765712952354,8.80994492,131.18,131.09,8.26]
[1765712952660,0.71,131.17,131.1,0.67]
[1765712953179,0.71,131.17,131.11,0.28432314]
[1765712953466,0.71,131.17,131.1,13.7170912]
[1765712953821,0.71,131.17,131.1,13.0470912]
[1765712954552,8.80994492,131.16,131.08,0.67]
[1765712954741,8.80994492,131.16,131.09,13.0470912]
[1765712954940,0.71,131.15,131.09,13.0470912]
[1765712955139,0.71,131.15,131.08,0.67]
[1765712955341,0.71,131.15,131.09,13.0470912]
[1765712956668,22.87,131.14,131.05,0.77]
[1765712956852,13.7570912,131.15,131.06,0.67]
[1765712957038,0.71,131.14,131.06,13.7170912]
[1765712957241,0.71,131.14,131.07,0.14216157]
[1765712957440,0.71,131.14,131.07,0.81216157]
[1765712957641,0.71,131.14,131.07,0.95432314]
[1765712958260,0.71,131.14,131.08,0.67]
[1765712958956,0.71,131.14,131.08,8.93]
[1765712959136,0.71,131.17,131.09,14.00141434]
[1765712959661,0.71,131.17,131.1,0.67]
[1765712959867,8.80994492,131.16,131.1,13.0470912]
[1765712960353,0.71,131.15,131.1,13.0470912]
[1765712960867,0.71,131.17,131.11,0.67]
[1765712961039,0.71,131.15,131.1,13.7170912]
[1765712961669,13.0470912,131.18,131.11,0.95432314]
[1765712961670,59.44304252,131.14,131.11,0.95432314]
[1765712961866,59.44304252,131.14,131.12,0.67]
[1765712962366,59.44304252,131.14,131.11,0.28432314]
[1765712962566,59.44304252,131.14,131.11,0.95432314]
[1765712962970,59.44304252,131.14,131.12,0.67]
[1765712965749,59.44304252,131.14,131.11,0.95432314]
[1765712966559,59.44304252,131.14,131.11,0.28432314]
[1765712966760,59.44304252,131.14,131.12,0.71]
[1765712967247,59.44304252,131.14,131.13,0.28432314]
[1765712967449,59.44304252,131.14,131.12,8.97]
[1765712969261,59.44304252,131.14,131.08,0.71]
[1765712969262,0.67,131.13,131.08,0.71]
[1765712969580,0.67,131.13,131.1,13.18925277]
[1765712969873,59.44304252,131.14,131.1,13.18925277]
[1765712970078,60.11304252,131.14,131.1,13.89925277]
[1765712970480,59.44304252,131.14,131.11,0.85216157]
[1765712970777,59.44304252,131.14,131.12,13.0470912]
[1765712970956,59.44304252,131.14,131.13,0.28432314]
[1765712971156,59.44304252,131.14,131.13,0.99432314]
[1765712972695,59.44304252,131.14,131.1,13.0470912]
[1765712972980,60.11304252,131.14,131.11,0.28432314]
[1765712973387,60.11304252,131.14,131.11,0.14216157]
[1765712973569,60.11304252,131.14,131.11,0.28432314]
[1765712975190,59.44304252,131.14,131.11,0.99432314]
[1765712975577,59.44304252,131.14,131.12,0.85216157]
[1765712975785,59.44304252,131.14,131.12,9.11216157]
[1765712976263,59.44304252,131.14,131.13,8.26]
[1765712976689,60.11304252,131.14,131.11,0.14216157]
[1765712976898,59.44304252,131.14,131.11,0.28432314]
[1765712977203,0.67,131.13,131.11,8.54432314]
[1765712977379,60.11304252,131.14,131.11,8.54432314]
[1765712978602,59.44304252,131.14,131.11,8.54432314]
[1765712978805,0.67,131.13,131.11,8.26]
[1765712981000,60.11304252,131.13,131.11,8.26]
[1765712981383,59.44304252,131.13,131.11,8.26]
[1765712981564,59.44304252,131.13,131.12,0.28432314]
[1765712981770,60.11304252,131.18,131.12,0.99432314]
[1765712982003,59.44304252,131.17,131.12,0.99432314]
[1765712982176,60.11304252,131.17,131.12,0.28432314]
[1765712982376,0.67,131.16,131.12,0.28432314]
[1765712982811,0.67,131.16,131.13,8.26]
[1765712983207,59.44304252,131.15,131.13,8.26]
[1765712983408,59.44304252,131.14,131.13,8.26]
[1765712983630,22.87,131.18,131.13,8.26]
[1765712983631,0.67,131.15,131.13,8.26]
[1765712983818,0.67,131.17,131.13,8.26]
[1765712984027,32.34994492,131.17,131.13,8.26]
[1765712984501,0.67,131.16,131.1,13.0470912]
[1765712984708,62.2,131.13,131.11,8.26]
[1765712985012,62.2,131.13,131.1,13.0470912]
[1765712985210,62.2,131.13,131.11,8.26]
[1765712986144,62.87,131.13,131.11,8.26]
[1765712986914,62.2,131.13,131.11,8.26]
[1765712988458,62.2,131.13,131.12,0.99432314]
[1765712989037,173.6,131.21,131.15,0.28432314]
[1765712989038,0.67,131.21,131.15,0.28432314]
[1765712989264,0.67,131.2,131.16,8.26]
[1765712989615,0.67,131.2,131.16,8.97]
[1765712989837,0.67,131.2,131.16,8.26]
[1765712992122,0.67,131.2,131.16,8.97]
[1765712992324,0.67,131.2,131.16,8.26]
[1765712994432,0.67,131.2,131.15,8.26]
[1765712995342,0.67,131.2,131.16,0.28432314]
[1765712995643,0.67,131.2,131.16,0.99432314]
[1765712995842,8.80994492,131.23,131.16,0.99432314]
[1765712996014,0.68,131.21,131.16,0.98432314]
[1765712996363,0.68,131.21,131.16,0.28432314]
[1765712996516,0.68,131.21,131.16,0.98432314]
[1765712997036,0.68,131.21,131.15,8.26]
[1765712997241,0.68,131.21,131.15,8.96]
[1765712997828,0.68,131.21,131.16,0.98432314]
[1765712998942,0.68,131.21,131.15,8.26]
[1765712999124,0.68,131.21,131.15,8.96]
[1765713000026,62.2,131.2,131.15,8.26]
[1765713000224,62.2,131.2,131.16,0.7]
[1765713000420,62.88,131.2,131.16,0.7]
[1765713001032,62.88,131.19,131.12,0.7]
[1765713001231,62.2,131.18,131.11,0.7]
[1765713001431,62.88,131.18,131.12,13.0470912]
[1765713001640,0.68,131.17,131.12,13.0470912]
[1765713001844,0.68,131.17,131.12,13.7470912]
[1765713002041,0.68,131.17,131.13,0.7]
[1765713002244,0.68,131.17,131.13,0.98432314]
[1765713002542,0.68,131.17,131.12,13.0470912]
[1765713002733,0.68,131.17,131.12,0.7]
[1765713002932,0.68,131.17,131.12,8.96]
[1765713003235,0.68,131.17,131.12,22.0070912]
[1765713004728,0.68,131.17,131.12,21.3070912]
[1765713004931,0.68,131.17,131.12,22.0070912]
[1765713005128,0.68,131.17,131.12,13.7470912]
[1765713005338,0.68,131.17,131.13,8.26]
[1765713005555,0.68,131.17,131.13,0.7]
[1765713006146,62.2,131.18,131.16,0.28432314]
[1765713006450,0.68,131.21,131.16,8.54432314]
[1765713006655,0.68,131.21,131.17,0.7]
[1765713006825,0.68,131.21,131.16,8.26]
[1765713007437,0.68,131.21,131.12,8.80994492]
[1765713007755,0.68,131.21,131.14,0.7]
[1765713012563,8.80994492,131.2,131.13,21.59141434]
[1765713012761,0.68,131.21,131.13,22.29141434]
[1765713012965,23.55,131.2,131.13,22.29141434]
[1765713013339,0.68,131.19,131.13,22.29141434]
[1765713013563,0.68,131.19,131.14,0.7]
[1765713015742,0.68,131.19,131.14,8.96]
[1765713015942,0.68,131.19,131.11,14.03141434]
[1765713016159,0.68,131.19,131.12,8.26]
[1765713016867,0.68,131.19,131.11,8.26]
[1765713016868,22.87,131.17,131.11,8.26]
[1765713017037,22.87,131.17,131.11,8.96]
[1765713017236,0.68,131.16,131.11,22.0070912]
[1765713017651,0.68,131.16,131.12,0.7]
[1765713018070,0.68,131.16,131.11,21.3070912]
[1765713018273,0.68,131.16,131.08,8.96]
[1765713018565,0.68,131.16,131.1,0.28432314]
[1765713018746,0.68,131.16,131.11,13.0470912]
[1765713018948,0.68,131.16,131.09,13.7470912]
[1765713018949,0.68,131.16,131.09,0.28432314]
[1765713019137,0.68,131.16,131.09,13.33141434]
[1765713019748,0.68,131.16,131.09,14.03141434]
[1765713020160,23.55,131.16,131.09,14.03141434]
[1765713020666,0.68,131.15,131.09,13.33141434]
[1765713021371,0.68,131.15,131.09,14.03141434]
[1765713023272,62.2,131.14,131.09,13.33141434]
[1765713023436,62.2,131.14,131.09,14.03141434]
[1765713023639,62.2,131.14,131.1,0.7]
[1765713024663,62.88,131.14,131.1,0.7]
[1765713024847,62.2,131.14,131.1,0.7]
[1765713026271,62.89,131.14,131.1,0.7]
[1765713026842,62.2,131.14,131.1,0.7]
[1765713028475,62.2,131.13,131.1,0.7]
[1765713028776,62.2,131.12,131.1,0.7]
[1765713031488,16.44605294,131.15,131.1,0.7]
[1765713031660,16.44605294,131.15,131.12,13.33141434]
[1765713031862,16.44605294,131.15,131.14,0.28432314]
[1765713032381,16.44605294,131.15,131.13,8.26]
[1765713032572,16.44605294,131.15,131.13,8.93]
[1765713033160,16.44605294,131.15,131.14,0.67]
[1765713033359,16.44605294,131.15,131.14,0.28432314]
[1765713033558,16.44605294,131.15,131.14,0.95432314]
[1765713037044,0.69,131.21,131.14,0.95432314]
[1765713037250,0.69,131.22,131.17,0.28432314]
[1765713037486,0.69,131.22,131.18,8.26]
[1765713037650,0.69,131.22,131.18,8.93]
[1765713038086,0.69,131.22,131.18,8.26]
[1765713039559,0.69,131.22,131.18,8.93]
[1765713040067,24.74605294,131.25,131.19,0.67]
[1765713040270,0.69,131.24,131.19,0.67]
[1765713041395,0.69,131.24,131.19,0.95432314]